bitfinex/quotes_ETHUSD_20251217
["timestamp","ask_amount","ask_price","bid_price","bid_amount"]
[1765966323432,0.0002,2927.0,2926.7,5.72156513]
[1765966323844,0.0002,2927.0,2926.8,0.46438023]
[1765966324326,0.3974,2926.8,2926.7,0.46438023]
[1765966324539,0.4564,2926.8,2926.6,0.002]
[1765966324863,0.4068,2926.7,2926.6,0.002]
[1765966325860,0.4068,2926.7,2926.6,3.41893432]
[1765966326072,0.4073,2926.8,2926.6,0.002]
[1765966329675,0.1962,2926.9,2926.6,0.93777086]
[1765966329676,0.4068,2926.9,2926.6,0.93777086]
[1765966329876,0.8627,2926.9,2926.6,0.002]
[1765966330467,0.4068,2926.7,2926.6,0.002]
[1765966330874,0.0002,2927.0,2926.6,0.002]
[1765966331166,0.0002,2927.0,2926.6,0.4948]
[1765966331372,0.001,2926.8,2926.7,0.4852]
[1765966331694,0.4078,2926.8,2926.6,0.002]
[1765966332257,0.001,2926.8,2926.7,4.8591978]
[1765966332682,0.001,2926.8,2926.7,4.3663978]
[1765966332851,0.001,2926.8,2926.7,4.8591978]
[1765966333056,0.001,2926.8,2926.7,5.3155978]
[1765966333481,0.001,2926.8,2926.7,4.8227978]
[1765966333785,0.001,2926.8,2926.7,6.32708035]
[1765966334588,0.001,2926.8,2926.7,5.87068035]
[1765966335085,0.001,2926.8,2926.7,2.45386278]
[1765966335467,0.001,2926.8,2926.7,10.0799457]
[1765966335668,0.001,2926.8,2926.7,14.28921105]
[1765966336493,0.4078,2926.8,2926.7,10.87239348]
[1765966336667,0.4078,2926.8,2926.7,4.67364558]
[1765966338494,0.4078,2926.8,2926.7,8.09046315]
[1765966339203,0.001,2926.8,2926.7,9.06846315]
[1765966339370,0.4659,2926.8,2926.7,8.09046315]
[1765966339571,0.4659,2926.8,2926.7,4.67364558]
[1765966342698,0.4659,2926.8,2926.7,0.46438023]
[1765966342699,0.8642,2926.8,2926.7,0.46438023]
[1765966343577,0.001,2926.8,2926.7,9.53622771]
[1765966344209,0.0002,2926.8,2926.7,9.05102771]
[1765966344416,0.0002,2926.8,2926.7,9.53622771]
[1765966344889,0.0002,2926.8,2926.7,13.74549306]
[1765966347606,0.4651,2926.8,2926.7,8.09046315]
[1765966347902,0.0002,2926.8,2926.7,12.2997285]
[1765966348504,0.0002,2926.8,2926.7,12.7925285]
[1765966348708,0.0002,2926.8,2926.7,14.41387438]
[1765966349912,0.0002,2926.8,2926.7,13.45669415]
[1765966350406,0.0002,2926.8,2926.7,13.94949415]
[1765966350907,0.0002,2926.8,2926.7,13.45669415]
[1765966351501,0.0002,2926.8,2926.7,13.92107438]
[1765966352024,0.0002,2926.8,2926.7,14.41387438]
[1765966352229,0.0002,2926.8,2926.7,13.92107438]
[1765966355431,0.0002,2926.8,2926.7,14.09970773]
[1765966356902,0.0002,2926.8,2926.7,14.50521173]
[1765966357454,0.0002,2927.0,2926.8,0.86988423]
[1765966357725,0.0002,2927.0,2926.9,11.16760628]
[1765966358095,0.0002,2927.0,2926.9,11.65710628]
[1765966359049,0.0002,2927.0,2926.9,15.07369037]
[1765966359246,0.001,2928.0,2927.1,0.1571]
[1765966359559,0.001,2928.0,2927.9,4.20926535]
[1765966359560,0.376,2928.0,2927.9,4.20926535]
[1765966362427,0.376,2928.0,2927.9,7.62468254]
[1765966362756,0.376,2928.0,2927.9,4.20926535]
[1765966363449,0.376,2928.0,2927.9,7.62468254]
[1765966364457,0.001,2928.0,2927.9,13.85757769]
[1765966365959,0.001,2928.0,2927.9,14.32195792]
[1765966367903,0.001,2928.0,2927.9,5.90342722]
[1765966368206,0.0002,2928.0,2927.9,13.85485792]
[1765966368397,0.0002,2928.0,2927.9,14.32195792]
[1765966369700,0.0002,2928.0,2927.9,14.98900767]
[1765966373189,0.001,2928.2,2928.1,1.1052]
[1765966373388,0.001,2928.2,2928.1,11.89355144]
[1765966373883,0.001,2928.2,2928.1,12.56885144]
[1765966374518,0.001,2928.2,2928.1,4.15032074]
[1765966374682,0.001,2928.2,2928.1,7.68428609]
[1765966375108,0.001,2928.2,2928.1,11.09946999]
[1765966376816,0.001,2928.2,2928.1,11.58796999]
[1765966376989,0.17952415,2929.2,2928.5,0.46438023]
[1765966377193,0.54592415,2929.2,2929.1,4.20926535]
[1765966378020,0.54592415,2929.2,2929.1,9.4368307]
[1765966378021,0.001,2929.2,2929.1,9.4368307]
[1765966378389,0.001,2929.2,2929.1,9.90121093]
[1765966379192,0.001,2929.2,2929.1,13.31522888]
[1765966379389,0.001,2929.2,2929.1,15.04275716]
[1765966380716,0.001,2929.2,2929.1,15.44826116]
[1765966381322,0.001,2929.4,2929.3,0.4671]
[1765966381517,0.001,2929.4,2929.3,1.38398023]
[1765966381709,0.001,2929.4,2929.3,9.80251093]
[1765966381906,0.001,2929.4,2929.3,11.68873884]
[1765966382688,0.001,2930.4,2930.3,0.4671]
[1765966382901,0.001,2930.4,2930.1,4.20926535]
[1765966382902,0.4885,2930.3,2930.1,4.20926535]
[1765966383193,0.8537,2929.9,2929.8,4.20926535]
[1765966383391,0.3664,2929.9,2929.8,4.20926535]
[1765966383736,0.001,2930.4,2929.8,12.29883296]
[1765966383911,0.3664,2930.3,2930.2,4.20926535]
[1765966384226,0.8537,2930.3,2930.2,4.20926535]
[1765966384390,0.8537,2930.3,2929.8,7.62246761]
[1765966384592,0.001,2930.4,2930.1,4.20926535]
[1765966384831,0.001,2930.4,2930.3,4.70216535]
[1765966385220,0.001,2930.4,2930.3,12.81245056]
[1765966385423,0.001,2930.4,2930.3,13.27683079]
[1765966385601,0.001,2930.4,2930.3,13.47403079]
[1765966385804,0.001,2930.4,2930.3,15.16270734]
[1765966386033,0.001,2931.6,2931.1,1.1272]
[1765966386334,0.001,2931.6,2931.1,4.84356535]
[1765966386335,0.405,2931.6,2931.1,4.84356535]
[1765966386514,0.4048,2931.3,2931.2,4.19662034]
[1765966387112,0.001,2931.6,2930.4,0.46438023]
[1765966387113,0.4795,2931.2,2930.4,0.46438023]
[1765966387432,0.4055,2931.0,2930.8,3.4119882]
[1765966387633,0.4055,2931.0,2930.9,7.60854159]
[1765966387832,0.4055,2931.0,2930.9,4.19662034]
[1765966387833,0.404,2931.0,2930.9,4.19662034]
[1765966388008,0.404,2931.0,2930.9,7.60854159]
[1765966388560,0.404,2931.0,2930.9,4.19662034]
[1765966388838,0.404,2931.0,2930.5,1.44650005]
[1765966389023,0.001,2931.6,2931.0,3.90020484]
[1765966389229,0.405,2931.6,2931.5,4.19662034]
[1765966389537,0.405,2931.6,2931.3,4.19617645]
[1765966389837,0.405,2931.6,2931.5,0.6635]
[1765966390353,0.8852,2931.6,2931.5,0.6635]
[1765966390523,0.8852,2931.6,2931.5,4.85967645]
[1765966390524,0.405,2931.6,2931.5,4.85967645]
[1765966390725,0.001,2931.6,2931.5,13.44837582]
[1765966390908,0.001,2931.6,2931.5,14.73986912]
[1765966391463,0.001,2931.6,2931.5,10.54369267]
[1765966391752,0.4173,2931.6,2931.5,4.07472292]
[1765966391917,0.001,2931.6,2931.5,4.85967645]
[1765966392382,0.8968,2931.6,2931.5,0.6635]
[1765966393034,0.4803,2931.5,2930.2,0.4884]
[1765966393246,0.4169,2931.2,2931.1,0.6635]
[1765966393448,0.8966,2931.2,2931.1,0.6635]
[1765966393630,0.4797,2931.1,2930.3,4.19617645]
[1765966393855,0.4797,2931.1,2930.5,0.8966]
[1765966394056,0.8966,2930.6,2930.5,0.8966]
[1765966394298,0.8966,2930.6,2929.2,4.19617645]
[1765966394299,0.4175,2930.6,2929.1,0.1681]
[1765966394580,0.1825,2930.8,2930.0,5.22216999]
[1765966394581,0.4791,2930.5,2930.0,5.22216999]
[1765966395338,0.1825,2930.8,2930.0,5.22216999]
[1765966395339,0.481,2930.7,2930.3,3.41261986]
[1765966395683,0.481,2931.1,2930.5,5.70969038]
[1765966395887,0.0002,2931.6,2930.6,0.98690293]
[1765966396041,0.0002,2931.6,2930.7,0.4884]
[1765966396241,0.0002,2931.6,2930.8,0.03412037]
[1765966396671,0.0002,2931.6,2930.8,0.481]
[1765966396966,0.0002,2931.6,2930.9,0.03411921]
[1765966397136,0.0002,2931.6,2930.9,5.74380959]
[1765966397461,0.0002,2931.6,2930.9,9.79283276]
[1765966398435,1.0797,2930.9,2930.8,0.481]
[1765966399868,0.481,2930.8,2930.3,3.41459965]
[1765966400075,0.4163,2930.5,2930.4,0.481]
[1765966400845,0.481,2930.8,2930.4,0.481]
[1765966401038,0.4812,2931.6,2930.4,3.89347821]
[1765966401746,0.4812,2931.6,2930.4,0.481]
[1765966402273,0.8966,2930.5,2930.4,0.481]
[1765966402567,0.4163,2930.5,2930.4,0.481]
[1765966402771,0.481,2931.1,2930.4,3.89350341]
[1765966402971,0.481,2931.1,2930.4,0.481]
[1765966403185,0.8966,2930.5,2930.4,0.481]
[1765966404080,0.4163,2930.5,2930.4,0.481]
[1765966405577,0.0002,2931.6,2930.4,1.75116656]
[1765966405776,0.0002,2931.6,2930.4,4.38638544]
[1765966405978,0.0002,2931.6,2930.4,3.90538544]
[1765966406162,0.001,2930.6,2930.5,1.02572343]
[1765966407149,0.4173,2930.6,2930.5,1.02572343]
[1765966407351,0.8976,2930.6,2930.5,1.02572343]
[1765966407684,0.001,2930.6,2930.5,1.02572343]
[1765966408798,0.4173,2930.6,2930.5,1.02572343]
[1765966409456,0.4173,2930.6,2930.5,4.43811039]
[1765966409981,0.4173,2930.6,2930.5,1.02572343]
[1765966410514,0.4173,2930.6,2930.5,4.43811039]
[1765966411093,0.4173,2930.6,2930.5,1.02572343]
[1765966412197,0.001,2930.6,2930.5,1.02572343]
[1765966412516,0.4173,2930.6,2930.5,1.02572343]
[1765966414982,0.001,2930.6,2930.5,1.02572343]
[1765966415674,0.4265,2930.6,2930.5,1.02572343]
[1765966416341,0.4257,2930.6,2930.5,1.02572343]
[1765966418193,0.0002,2930.6,2930.5,1.46974582]
[1765966418518,0.0002,2930.6,2930.5,5.38789062]
[1765966418926,0.0002,2930.6,2930.5,4.93661448]
[1765966419331,0.0002,2930.6,2930.5,4.90249062]
[1765966419510,0.0002,2930.6,2930.5,4.93661448]
[1765966419719,0.0002,2930.6,2930.5,4.90249062]
[1765966419913,0.0002,2930.6,2930.5,6.30515773]
[1765966420537,0.4174,2930.6,2930.5,6.30515773]
[1765966420737,0.4174,2930.6,2930.5,1.49010366]
[1765966421041,0.0002,2930.6,2930.5,4.90249062]
[1765966421606,0.0002,2930.6,2930.5,4.93661448]
[1765966422803,0.0002,2930.6,2930.5,5.34211848]
[1765966424034,0.0002,2930.6,2930.5,4.90249062]
[1765966424236,0.0002,2930.6,2930.5,6.26812579]
[1765966424556,0.0002,2930.6,2930.5,5.78272579]
[1765966425936,0.0002,2930.6,2930.5,4.43811039]
[1765966426230,0.0002,2930.6,2930.5,4.90249062]
[1765966426637,0.4174,2930.6,2930.5,4.90249062]
[1765966426806,0.8821,2930.6,2930.5,1.02572343]
[1765966427607,0.4698,2930.4,2930.3,0.002]
[1765966428311,0.4698,2930.4,2930.3,0.8841]
[1765966428510,0.4698,2930.4,2930.3,0.002]
[1765966429125,0.4959,2930.4,2930.3,0.002]
[1765966430118,0.8827,2930.4,2930.3,0.002]
[1765966431413,0.4959,2930.4,2930.3,0.002]
[1765966431742,0.0002,2930.6,2930.3,0.002]
[1765966432113,0.0002,2930.6,2930.3,1.23559687]
[1765966432914,0.0002,2930.6,2930.3,1.6999771]
[1765966433111,0.0002,2930.6,2930.4,7.31040682]
[1765966434470,0.0002,2930.6,2930.5,0.46438023]
[1765966435361,0.0002,2930.6,2930.5,3.87676719]
[1765966435561,0.0002,2930.6,2930.5,5.30022297]
[1765966436266,0.0002,2930.6,2930.5,5.78562297]
[1765966437258,0.0002,2930.6,2930.5,6.25102297]
[1765966437778,0.0002,2930.6,2930.5,5.76562297]
[1765966439256,0.0002,2930.6,2930.5,6.25102297]
[1765966439665,0.0002,2930.6,2930.5,5.76562297]
[1765966440153,0.4648,2931.6,2930.5,9.17800993]
[1765966440351,0.4648,2931.6,2930.6,1.83022037]
[1765966441364,0.4648,2931.6,2930.7,0.4648]
[1765966441833,0.4648,2931.6,2930.8,13.0191657]
[1765966442033,0.4648,2931.6,2930.9,0.4854]
[1765966442226,0.4648,2931.6,2930.8,12.5337657]
[1765966442430,0.4172,2931.0,2930.9,1.25337657]
[1765966442627,0.4652,2931.6,2930.9,1.71817657]
[1765966442856,0.4652,2931.8,2931.0,0.4854]
[1765966443066,0.64356306,2931.7,2931.0,0.4854]
[1765966443230,0.64356306,2931.7,2931.1,0.4652]
[1765966443428,0.64356306,2931.7,2931.1,0.68559766]
[1765966443857,0.64356306,2931.7,2931.1,1.17099766]
[1765966444047,0.64356306,2931.7,2931.2,3.41157205]
[1765966444359,0.17836306,2931.7,2931.2,3.41157205]
[1765966444547,0.4034,2931.3,2931.2,3.41157205]
[1765966444858,0.4034,2931.3,2931.2,4.11594691]
[1765966445031,0.4783,2931.6,2931.2,4.59424691]
[1765966445462,0.6608,2931.9,2931.3,0.4928]
[1765966445663,0.6608,2931.9,2931.4,0.03411339]
[1765966445961,0.4783,2931.8,2931.4,3.41133929]
[1765966446166,0.001,2931.6,2931.4,3.41133929]
[1765966446455,0.001,2931.6,2931.5,0.4567]
[1765966446657,0.001,2931.6,2931.4,4.7843045]
[1765966446658,0.4044,2931.6,2931.4,4.7843045]
[1765966446959,0.001,2931.6,2931.5,0.9495]
[1765966447534,0.001,2931.6,2931.5,1.41388023]
[1765966447735,0.001,2931.6,2931.5,2.37483263]
[1765966447930,0.001,2931.6,2931.5,2.40894485]
[1765966448154,0.001,2931.6,2931.5,5.78605555]
[1765966448667,0.001,2931.6,2931.5,5.29325555]
[1765966448829,0.001,2931.6,2931.4,4.7843045]
[1765966448830,0.4888,2931.6,2931.2,0.70437486]
[1765966449039,0.4888,2931.6,2931.3,3.41137614]
[1765966449234,0.4888,2931.6,2931.4,3.41133781]
[1765966449461,0.001,2931.6,2931.5,0.4567]
[1765966450061,0.4001,2931.6,2931.2,3.41153085]
[1765966450263,0.4001,2931.6,2931.2,7.3159029]
[1765966450430,0.4001,2931.6,2931.3,0.77942029]
[1765966450635,0.001,2931.6,2931.3,1.27222029]
[1765966451251,0.001,2931.6,2931.5,0.4567]
[1765966451665,0.001,2931.6,2931.5,6.40361265]
[1765966451831,0.001,2931.6,2931.5,6.86799288]
[1765966452032,0.001,2931.6,2931.5,11.04395712]
[1765966452956,0.001,2931.6,2931.5,11.02945712]
[1765966453151,0.001,2931.6,2931.5,11.52225712]
[1765966454874,0.001,2931.6,2931.5,11.92776112]
[1765966456150,0.001,2931.6,2931.5,17.37842543]
[1765966456643,0.4783,2932.9,2931.5,17.37842543]
[1765966456644,0.4783,2932.9,2931.7,0.4928]
[1765966457268,0.4783,2932.9,2931.9,0.4928]
[1765966457455,0.4793,2932.8,2931.9,0.4928]
[1765966457867,0.001,2932.8,2931.9,0.4928]
[1765966458167,0.001,2932.8,2932.5,3.41005967]
[1765966458765,0.001,2932.8,2932.5,3.90285967]
[1765966459976,0.001,2932.8,2932.5,7.31291934]
[1765966460384,0.4888,2932.8,2932.5,4.13275199]
[1765966460700,0.001,2932.8,2932.7,0.4567]
[1765966461295,0.8704,2932.8,2932.5,3.41005967]
[1765966461488,0.3827,2932.6,2932.5,3.41003832]
[1765966461677,0.001,2932.8,2932.5,3.41003832]
[1765966462352,0.001,2932.8,2932.5,0.46438023]
[1765966462752,0.001,2932.8,2932.5,0.95718023]
[1765966462954,0.001,2932.8,2932.5,1.78276345]
[1765966463262,0.001,2932.8,2932.7,0.9495]
[1765966463482,0.3816,2932.6,2932.5,1.28996345]
[1765966463654,0.0048,2932.8,2932.5,0.46438023]
[1765966463857,0.8694,2932.6,2932.5,0.46438023]
[1765966464248,0.487,2932.6,2932.5,0.46438023]
[1765966464594,0.0038,2932.4,2932.3,4.35297249]
[1765966464753,0.001,2932.8,2932.4,0.46438023]
[1765966464954,0.001,2932.8,2932.7,0.4567]
[1765966465464,0.3904,2932.8,2932.4,0.46438023]
[1765966465871,0.3904,2932.8,2932.4,2.32785314]
[1765966466589,0.3904,2932.8,2932.5,3.41005967]
[1765966467166,0.8679,2932.8,2932.5,3.41005967]
[1765966467387,0.3904,2932.8,2932.5,3.41005967]
[1765966468090,0.4822,2932.4,2932.0,3.87493477]
[1765966468461,0.4822,2932.4,2932.1,0.4775]
[1765966468661,0.4822,2932.4,2932.0,3.87493477]
[1765966468863,0.4822,2932.4,2932.0,4.35713477]
[1765966469065,0.4822,2932.4,2932.0,0.94658023]
[1765966469066,0.3855,2932.1,2932.0,0.94658023]
[1765966469394,0.001,2932.8,2931.1,3.4136409]
[1765966469395,0.4783,2931.8,2931.1,3.4136409]
[1765966469570,0.44,2931.3,2931.2,0.4783]
[1765966469771,0.44,2931.3,2931.1,3.41368144]
[1765966469974,0.0048,2931.2,2931.1,0.002]
[1765966470580,0.4783,2931.4,2931.1,0.002]
[1765966470777,0.1612,2931.9,2931.1,0.002]
[1765966470778,0.918,2931.2,2931.1,0.002]
[1765966472896,0.1612,2931.9,2931.1,0.002]
[1765966472897,0.1612,2931.9,2931.1,0.1894]
[1765966473081,0.4783,2932.2,2931.5,5.45066431]
[1765966473286,0.4783,2932.2,2931.2,5.94346431]
[1765966473587,0.4783,2932.2,2931.3,0.61328643]
[1765966474698,0.4783,2932.2,2931.4,3.41133929]
[1765966475198,0.4783,2932.2,2931.6,0.46438023]
[1765966475571,0.4766,2932.7,2931.6,0.94338023]
[1765966475791,0.4766,2932.7,2931.8,5.45066431]
[1765966476095,0.4766,2932.7,2932.0,0.479]
[1765966476894,0.4766,2932.7,2932.1,6.82104974]
[1765966477895,0.001,2932.8,2932.1,12.75191405]
[1765966478482,0.001,2932.8,2932.1,12.27171405]
[1765966478483,0.4657,2932.8,2932.1,12.27171405]
[1765966480090,0.4657,2932.8,2932.2,0.4657]
[1765966480299,0.8925,2932.4,2932.3,1.27374141]
[1765966480498,0.0046,2932.3,2932.1,0.46438023]
[1765966480700,0.0046,2932.3,2932.0,3.87497709]
[1765966481006,0.4691,2932.1,2932.0,0.8925]
[1765966481173,0.4691,2932.1,2932.0,2.3147013]
[1765966481502,0.4691,2932.1,2932.0,2.77908153]
[1765966481697,0.8929,2932.1,2932.0,1.88658153]
[1765966481891,0.8929,2932.1,2932.0,0.46438023]
[1765966482089,0.1947,2931.9,2931.8,0.4691]
[1765966482294,0.4647,2931.8,2931.4,0.002]
[1765966482468,0.4647,2931.8,2931.4,0.4667]
[1765966484607,0.8893,2931.5,2931.4,0.002]
[1765966485973,0.4647,2931.8,2931.4,0.002]
[1765966486178,0.8888,2931.5,2931.4,0.002]
[1765966488402,0.888,2931.5,2931.4,0.002]
[1765966493909,1.06640131,2931.5,2931.4,0.002]
[1765966494997,0.4693,2931.2,2931.1,0.002]
[1765966495387,0.4691,2930.5,2930.4,0.002]
[1765966495588,1.056,2930.5,2930.4,0.002]
[1765966496697,0.6596,2930.5,2930.4,0.002]
[1765966497316,1.056,2930.5,2930.4,0.002]
[1765966500433,0.4645,2930.3,2930.2,0.002]
[1765966500586,1.80528152,2930.3,2930.2,0.002]
[1765966500790,0.8655,2930.3,2930.2,0.002]
[1765966502285,1.271004,2930.3,2930.2,0.002]
[1765966505309,10.5986684,2930.3,2930.2,0.002]
[1765966505709,1.32988023,2930.3,2930.2,0.002]
[1765966506432,0.8655,2930.3,2930.2,0.002]
[1765966506632,7.18604854,2930.3,2930.2,0.002]
[1765966506930,8.31139714,2930.3,2930.2,0.002]
[1765966509635,11.724017,2930.3,2930.2,0.002]
[1765966510306,8.31139714,2930.3,2930.2,0.002]
[1765966510550,11.724017,2930.3,2930.2,0.002]
[1765966511512,6.27335269,2930.3,2930.2,0.002]
[1765966512212,6.27255269,2930.3,2930.2,0.002]
[1765966512432,2.85993283,2930.3,2930.2,0.002]
[1765966512603,6.27255269,2930.3,2930.2,0.002]
[1765966512807,9.86955269,2930.3,2930.2,0.002]
[1765966513008,6.27255269,2930.3,2930.2,0.002]
[1765966513552,6.27255269,2930.3,2930.0,0.002]
[1765966513553,0.8643,2930.1,2930.0,0.002]
[1765966513842,1.91976568,2930.1,2930.0,0.002]
[1765966515437,1.269804,2930.1,2930.0,0.002]
[1765966516737,1.73418423,2930.1,2930.0,0.002]
[1765966516937,1.269804,2930.1,2930.0,0.002]
[1765966517442,0.405504,2930.1,2930.0,0.002]
[1765966518447,0.86988423,2930.1,2930.0,0.002]
[1765966518626,1.63941314,2930.1,2930.0,0.002]
[1765966518829,5.05226594,2930.1,2930.0,0.002]
[1765966520435,1.17503291,2930.1,2930.0,0.002]
[1765966521036,5.05226594,2930.1,2930.0,0.002]
[1765966521836,5.08637875,2930.1,2930.0,0.002]
[1765966524350,5.26593526,2930.1,2930.0,0.002]
[1765966526917,10.98649468,2930.1,2930.0,0.002]
[1765966527522,21.04349468,2930.1,2930.0,0.002]
[1765966530161,0.05,2929.8,2928.1,0.002]
[1765966530367,6.59044365,2929.2,2928.1,0.002]
[1765966530572,13.05044365,2929.2,2928.1,0.002]
[1765966531056,16.46434505,2929.2,2928.1,0.002]
[1765966533433,0.86988423,2929.1,2929.0,0.4976]
[1765966533628,0.86988423,2929.1,2928.8,0.4921]
[1765966533629,1.92059115,2929.1,2928.8,0.4921]
[1765966533947,1.92059115,2929.1,2928.8,0.002]
[1765966534147,1.92059115,2929.1,2928.7,0.6111]
[1765966534737,0.405504,2928.9,2928.2,0.4238]
[1765966535051,0.43961681,2928.9,2928.2,0.4238]
[1765966535597,0.405504,2928.6,2928.1,0.002]
[1765966536163,0.404704,2928.6,2928.1,0.002]
[1765966537477,0.46438023,2928.5,2928.1,0.002]
[1765966537784,0.38789907,2928.4,2928.1,0.002]
[1765966538268,0.405504,2928.3,2928.1,0.002]
[1765966539683,4.64770692,2929.1,2928.1,0.002]
[1765966539849,0.4794,2929.3,2928.1,0.002]
[1765966540048,0.406504,2928.9,2928.1,0.002]
[1765966540249,1.05798423,2928.9,2928.1,0.002]
[1765966540448,6.77854365,2928.9,2928.1,0.002]
[1765966540686,0.4794,2928.7,2928.1,0.002]
[1765966541406,0.405504,2928.6,2928.1,0.002]
[1765966541763,0.86988423,2928.5,2928.1,0.002]
[1765966541964,0.405504,2928.3,2928.1,0.002]
[1765966542456,1.344304,2928.2,2928.1,0.002]
[1765966543069,0.405504,2928.2,2928.1,0.002]
[1765966543466,0.864904,2928.2,2928.1,0.002]
[1765966543659,1.52007813,2928.2,2928.1,0.002]
[1765966543861,1.344304,2928.1,2928.0,0.002]
[1765966544375,0.864904,2928.1,2928.0,0.002]
[1765966545092,0.864904,2928.1,2927.0,0.002]
[1765966545093,1.052004,2927.9,2927.0,0.002]
[1765966545291,1.531404,2927.9,2927.0,0.002]
[1765966545494,0.405504,2927.7,2927.0,0.002]
[1765966547092,0.405504,2927.8,2927.0,0.002]
[1765966549269,0.405504,2927.6,2927.0,0.002]
[1765966552594,0.77163436,2927.9,2927.0,0.002]
[1765966552795,0.405504,2927.9,2927.0,0.002]
[1765966553668,4.35897057,2928.1,2927.0,0.002]
[1765966553868,0.405504,2927.7,2927.0,0.002]
[1765966554600,0.1786442,2927.6,2927.0,0.002]
[1765966558007,0.1786442,2927.6,2927.0,4.21201248]
[1765966558204,0.1786442,2927.6,2927.1,0.76337286]
[1765966558409,0.1786442,2927.6,2927.3,4.21001248]
[1765966558800,6.46,2928.2,2927.4,3.41600054]
[1765966559102,0.17859633,2927.9,2927.4,3.41600054]
[1765966559493,0.17859633,2927.9,2927.1,4.97338534]
[1765966559696,0.17859633,2927.9,2927.2,4.25539329]
[1765966560218,0.17779633,2927.9,2927.3,3.41609455]
[1765966560392,0.17779633,2927.9,2927.3,7.62610703]
[1765966560716,0.17779633,2927.9,2927.2,0.83918095]
[1765966560877,0.17779633,2927.9,2927.1,3.41631631]
[1765966561273,4.68941248,2927.8,2927.0,0.002]
[1765966561678,0.4794,2927.8,2927.0,0.002]
[1765966561909,0.36489633,2927.9,2927.0,0.002]
[1765966562591,0.405504,2927.8,2927.0,0.002]
[1765966563311,0.405504,2927.8,2927.0,0.34437495]
[1765966564090,0.17779633,2927.9,2927.3,4.21001248]
[1765966564795,0.17779633,2927.9,2927.1,3.41635065]
[1765966564998,0.17779633,2927.9,2927.1,6.8327013]
[1765966565202,0.17779633,2927.9,2927.1,3.41635065]
[1765966565404,0.895104,2927.8,2927.0,0.002]
[1765966565724,0.4896,2927.8,2927.0,0.002]
[1765966565910,0.17779633,2927.9,2927.0,0.002]
[1765966566107,0.17779633,2927.9,2927.0,7.62843042]
[1765966566330,0.17779633,2927.9,2927.0,11.04489779]
[1765966566486,0.17779633,2927.9,2927.1,1.10500657]
[1765966566682,0.35969633,2927.9,2927.1,1.10500657]
[1765966566919,0.17779633,2927.9,2927.0,3.41846296]
[1765966567283,0.17779633,2927.9,2927.2,4.21001248]
[1765966567485,0.17879633,2927.9,2927.5,4.21001248]
[1765966568387,0.17879633,2927.9,2927.8,4.21001248]
[1765966568630,0.001,2927.9,2927.8,4.21001248]
[1765966568943,0.001,2927.9,2927.8,8.04654757]
[1765966569115,0.001,2927.9,2927.8,4.63101373]
[1765966569296,0.001,2927.9,2927.8,0.42100125]
[1765966570630,0.001,2927.9,2927.5,3.41584687]
[1765966571107,0.001,2927.9,2927.4,6.8319838]
[1765966571426,0.001,2927.9,2927.5,4.21001248]
[1765966571619,0.001,2927.9,2927.4,0.46438023]
[1765966573307,0.001,2927.9,2927.2,3.88056543]
[1765966573545,0.001,2927.9,2927.3,1.19712296]
[1765966573945,0.001,2927.9,2927.2,3.88056543]
[1765966573946,0.001,2927.9,2927.2,3.4161852]
[1765966574147,0.001,2927.9,2927.4,3.41598083]
[1765966574446,0.001,2927.9,2927.3,0.46438023]
[1765966574648,0.001,2927.9,2927.3,3.88042964]
[1765966574848,0.001,2927.9,2927.1,0.46438023]
[1765966575146,0.001,2927.9,2927.3,3.41604912]
[1765966575359,0.001,2927.9,2927.3,0.68323145]
[1765966577203,0.001,2927.9,2927.4,3.41600054]
[1765966578533,0.001,2927.9,2927.3,4.09929989]
[1765966579543,0.6725,2927.9,2927.3,0.68323145]
[1765966579836,0.6725,2927.9,2927.1,3.41634874]
[1765966580036,0.6725,2927.9,2927.0,3.41840535]
[1765966580250,0.6725,2927.9,2927.1,3.4163502]
[1765966580446,0.6725,2927.9,2927.2,3.41622694]
[1765966580658,0.6725,2927.9,2927.0,3.41846574]
[1765966580659,0.6725,2927.9,2927.1,3.41629859]
[1765966581225,0.6725,2927.9,2927.1,4.10030007]
[1765966581856,0.001,2927.9,2927.2,3.41622572]
[1765966582158,0.1829,2927.9,2927.1,0.68400148]
[1765966582359,0.6725,2927.9,2927.1,0.68400148]
[1765966582521,0.6725,2927.9,2927.1,4.10034041]
[1765966583756,0.001,2927.9,2927.1,4.10034041]
[1765966584243,0.0002,2927.9,2927.2,0.41023404]
[1765966585145,0.0002,2927.9,2927.3,0.03416117]
[1765966585460,0.0002,2927.9,2927.2,0.41023404]
[1765966585674,0.0002,2927.9,2927.3,5.50480916]
[1765966585829,0.0002,2927.9,2927.6,5.47064799]
[1765966586151,0.0002,2927.9,2927.7,0.5470648]
[1765966586536,0.0002,2927.9,2927.8,3.41553384]
[1765966588437,0.0002,2927.9,2927.8,3.44968917]
[1765966588630,0.0002,2927.9,2927.8,3.87991407]
[1765966591945,0.0002,2927.9,2927.8,3.41553384]
[1765966593456,0.0002,2927.9,2927.8,4.70041724]
[1765966595576,0.0002,2927.9,2927.6,8.88637806]
[1765966595942,0.0002,2927.9,2927.2,0.41023404]
[1765966596167,0.0002,2927.9,2927.2,0.89023404]
[1765966596787,0.0002,2927.9,2927.4,3.41593402]
[1765966596944,0.0002,2927.9,2927.5,3.4158757]
[1765966597378,0.0002,2927.9,2927.4,3.41595221]
[1765966598548,0.0002,2927.9,2927.0,0.002]
[1765966598549,0.4972,2927.8,2927.0,0.002]
[1765966598876,0.4972,2927.8,2927.2,3.41622668]
[1765966599083,0.1854,2927.9,2927.2,3.41622668]
[1765966600274,0.1854,2927.9,2927.1,3.41631151]